bitfinex-derivatives/quotes_ETHF0:USTF0_20250309
["timestamp","ask_amount","ask_price","bid_price","bid_amount"]
[1741502889893,0.54962,2183.7,2183.6,25.0043]
[1741502892095,0.54962,2183.7,2183.6,23.7608]
[1741502893799,0.54961,2183.8,2183.6,23.7608]
[1741502894094,0.54961,2183.8,2183.7,0.608]
[1741502895491,0.55645955,2183.9,2183.7,0.608]
[1741502895690,0.54959,2183.8,2183.7,0.608]
[1741502895884,0.55645955,2183.9,2183.7,1.15762]
[1741502896092,0.55645955,2183.9,2183.7,0.608]
[1741502896399,0.55645955,2183.9,2183.7,1.15761]
[1741502896584,0.00686955,2183.9,2183.7,0.608]
[1741502896787,0.00686955,2183.9,2183.8,0.54959]
[1741502906806,0.6275,2184.3,2183.8,0.54959]
[1741502906807,0.6275,2184.3,2183.8,4.6346]
[1741502907001,0.6275,2184.3,2184.1,3.2078]
[1741502907200,0.6275,2184.3,2184.1,3.75729]
[1741502907404,0.6275,2184.3,2184.1,3.2078]
[1741502907601,0.54949,2184.2,2184.1,3.2078]
[1741502911214,0.54957,2183.9,2183.8,3.2078]
[1741502912109,0.54962,2183.7,2183.6,22.527]
[1741502913311,0.54962,2183.7,2183.6,20.553]
[1741502914410,1.2002,2183.8,2183.6,21.10264]
[1741502914912,1.20022,2183.8,2183.6,20.553]
[1741502915515,0.54962,2183.7,2183.6,20.553]
[1741502917420,3.75742,2183.7,2183.6,20.553]
[1741502918515,0.54962,2183.7,2183.6,20.553]
[1741502922820,0.54962,2183.7,2183.6,21.1996]
[1741502923021,1.2659,2183.9,2183.6,21.1996]
[1741502923216,0.54961,2183.8,2183.6,21.1996]
[1741502923422,1.2659,2183.9,2183.6,21.1996]
[1741502923619,0.54959,2183.8,2183.6,21.1996]
[1741502924221,0.54962,2183.7,2183.6,21.1996]
[1741502924422,0.54962,2183.7,2183.6,20.553]
[1741502925120,1.15472,2183.7,2183.6,20.553]
[1741502925524,0.54962,2183.7,2183.6,20.553]
[1741502925713,0.54961,2183.8,2183.6,21.10265]
[1741502926025,0.54961,2183.8,2183.7,0.6026]
[1741502926226,0.54961,2183.8,2183.7,1.2141]
[1741502927318,0.6051,2184.1,2183.7,4.4219]
[1741502927522,0.54957,2183.9,2183.7,6.94651]
[1741502927723,0.54957,2183.9,2183.7,6.3969]
[1741502928331,0.6051,2184.1,2183.7,6.3969]
[1741502928531,0.54956,2184.0,2183.7,6.94651]
[1741502929128,0.54956,2184.0,2183.8,0.54959]
[1741502929326,0.54957,2183.9,2183.7,6.3969]
[1741502929933,0.6092,2184.0,2183.7,6.3969]
[1741502930130,0.54959,2183.8,2183.7,6.3969]
[1741502931029,0.54959,2183.8,2183.7,4.4219]
[1741502931226,0.6092,2184.0,2183.6,20.553]
[1741502931427,0.54962,2183.7,2183.6,20.553]
[1741502931627,0.54961,2183.8,2183.6,20.553]
[1741502932125,0.54962,2183.7,2183.6,20.553]
[1741502940342,1.78362,2183.7,2183.6,20.553]
[1741502942942,0.54962,2183.7,2183.6,20.553]
[1741502949749,0.54962,2183.7,2183.6,21.199]
[1741502952245,0.54962,2183.7,2183.6,0.646]
[1741502957551,3.2078,2183.8,2183.6,0.646]
[1741502957753,3.75742,2183.8,2183.6,0.646]
[1741502958154,3.2078,2183.8,2183.6,0.646]
[1741502958351,0.54962,2183.7,2183.6,0.646]
[1741502967855,3.75742,2183.8,2183.6,0.646]
[1741502968358,0.54962,2183.7,2183.6,0.646]
[1741502968558,3.2078,2183.8,2183.6,0.646]
[1741502968854,0.54962,2183.7,2183.6,0.646]
[1741502969757,3.2078,2183.8,2183.6,0.646]
[1741502969962,3.7574,2183.8,2183.6,1.19564]
[1741502970265,3.2078,2183.8,2183.6,0.646]
[1741502970464,0.54962,2183.7,2183.6,0.646]
[1741502972258,0.54962,2183.7,2183.6,2.62]
[1741502973154,3.2078,2183.8,2183.6,2.62]
[1741502973353,3.7574,2183.8,2183.6,3.16964]
[1741502973753,3.2078,2183.8,2183.7,0.54962]
[1741502973955,3.2078,2183.8,2183.6,2.62]
[1741502974152,3.2078,2183.8,2183.7,0.54962]
[1741502975655,1.2409,2184.2,2184.1,0.54952]
[1741502975862,1.7904,2184.2,2183.6,5.8278]
[1741502976058,1.7904,2184.2,2183.9,0.54956]
[1741502976259,1.7904,2184.2,2184.0,0.6243]
[1741502976563,0.54952,2184.1,2184.0,1.2323]
[1741502977165,1.2409,2184.2,2184.0,1.2323]
[1741502977362,1.79041,2184.2,2184.0,1.2323]
[1741502978064,1.79041,2184.2,2184.0,3.2063]
[1741502979567,0.54952,2184.1,2184.0,1.974]
[1741502979959,1.2409,2184.2,2184.0,1.974]
[1741502980267,4.39798,2184.3,2184.0,2.52354]
[1741502980464,4.39798,2184.3,2184.1,1.2298]
[1741502982354,3.8485,2184.3,2184.1,1.2298]
[1741502982558,0.54949,2184.2,2184.1,1.2298]
[1741502982859,4.39798,2184.3,2184.1,1.2298]
[1741502984262,0.54949,2184.2,2184.1,1.2298]
[1741502985474,1.82039,2184.2,2184.1,1.2298]
[1741502986766,1.2709,2184.2,2184.1,1.2298]
[1741502986966,4.39798,2184.3,2184.1,1.2298]
[1741502987163,1.2166,2184.6,2184.1,1.2298]
[1741502987363,3.2078,2184.7,2184.4,0.54942]
[1741502987558,0.5494,2184.6,2184.5,0.6097]
[1741502987764,4.37048,2184.7,2184.5,0.6097]
[1741502988164,3.2078,2184.7,2184.6,0.6408]
[1741502988369,3.75717,2184.7,2184.6,0.6408]
[1741502990363,3.2078,2184.7,2184.6,0.6408]
[1741502994167,3.75717,2184.7,2184.6,0.6408]
[1741502995872,3.2078,2184.7,2184.6,0.6408]
[1741502996973,0.6133,2185.0,2184.6,1.19019]
[1741502997276,1.2378,2185.0,2184.6,0.64766955]
[1741502997480,1.1626,2185.0,2184.7,0.54935]
[1741502997671,0.5493,2185.0,2184.8,0.54934]
[1741502997872,0.5493,2185.0,2184.9,0.6399]
[1741502998475,1.1496,2185.0,2184.8,0.6183]
[1741502998667,0.54932,2184.9,2184.8,0.6183]
[1741502999068,0.6003,2185.0,2184.6,0.64766955]
[1741502999276,0.54937,2184.7,2184.6,0.64766955]
[1741502999574,1.16655,2184.8,2184.6,0.64766955]
[1741503000271,0.54937,2184.7,2184.6,0.64766955]
[1741503000476,0.6152,2184.7,2184.6,0.64766955]
[1741503000970,1.16457,2184.7,2184.6,0.64766955]
[1741503001175,1.79987,2184.7,2184.6,1.97986955]
[1741503002075,1.16655,2184.8,2184.6,1.97986955]
[1741503002569,0.54937,2184.7,2184.6,1.97986955]
[1741503003873,0.6172,2184.8,2184.6,1.97986955]
[1741503004068,0.54937,2184.7,2184.6,3.23786955]
[1741503004776,0.54937,2184.7,2184.6,2.63136955]
[1741503004976,0.54937,2184.7,2184.6,1.97986955]
[1741503005672,0.54937,2184.7,2184.6,0.00686955]
[1741503007376,4.54937,2184.7,2184.6,0.00686955]
[1741503007577,1.37354,2184.6,2184.0,1.973]
[1741503007779,0.54952,2184.1,2184.0,1.973]
[1741503010083,0.00686955,2184.3,2184.0,1.973]
[1741503010275,0.5495,2184.2,2184.0,1.973]
[1741503010475,0.5495,2184.2,2184.1,0.6445]
[1741503010778,0.6307,2184.2,2183.8,3.21466955]
[1741503010979,0.54957,2183.9,2183.8,5.18766955]
[1741503011375,0.54957,2183.9,2183.8,1.97986955]
[1741503011876,1.19897,2183.9,2183.8,1.97986955]
[1741503012484,1.19897,2183.9,2183.8,2.32191683]
[1741503012683,1.19897,2183.9,2183.8,0.00686955]
[1741503035306,1.19897,2183.9,2183.8,0.66036955]
[1741503042507,0.6134,2184.1,2183.8,0.66036955]
[1741503042713,0.6134,2184.1,2183.9,0.615]
[1741503042714,0.54954,2184.0,2183.9,0.615]
[1741503048518,1.2206,2184.1,2183.8,0.66036955]
[1741503048720,0.54957,2183.9,2183.8,0.66036955]
[1741503059420,0.54957,2183.9,2183.8,1.30486955]
[1741503060122,0.54957,2183.9,2183.8,0.00686955]
[1741503065921,3.75737,2183.9,2183.8,0.00686955]
[1741503066318,4.36747,2183.9,2183.8,0.00686955]
[1741503070028,3.75737,2183.9,2183.8,0.00686955]
[1741503075131,0.54982,2182.9,2182.8,1.1928]
[1741503076628,0.54987,2182.7,2182.6,0.00686955]
[1741503076830,0.54987,2182.7,2182.6,0.62706955]
[1741503081935,0.54987,2182.7,2182.6,0.00686955]
[1741503092138,0.54987,2182.7,2182.6,0.62006955]
[1741503099444,0.54987,2182.7,2182.6,0.00686955]
[1741503099638,2.41707,2182.7,2182.6,0.00686955]
[1741503101339,2.41707,2182.7,2182.6,9.55e-06]
[1741503113658,5.62487,2182.7,2182.6,9.55e-06]
[1741503115659,7.59887,2182.7,2182.6,9.55e-06]
[1741503119765,11.59887,2182.7,2182.6,9.55e-06]
[1741503120664,0.55,2182.2,2182.1,0.6028]
[1741503120856,0.55002,2182.1,2182.0,0.6279]
[1741503121055,1.15012,2182.1,2182.0,0.6279]
[1741503122262,0.55007,2181.9,2181.8,1.27056955]
[1741503122462,3.75787,2181.9,2181.8,1.27056955]
[1741503124458,0.55007,2181.9,2181.8,1.27056955]
[1741503126870,3.75787,2181.9,2181.8,1.27056955]
[1741503130479,3.75787,2181.9,2181.8,0.62836955]
[1741503131070,5.73187,2181.9,2181.8,9.55e-06]
[1741503131872,6.94677,2181.9,2181.8,9.55e-06]
[1741503134376,7.40177,2181.9,2181.8,9.55e-06]
[1741503140178,6.94677,2181.9,2181.8,9.55e-06]
[1741503141383,10.94677,2181.9,2181.8,9.55e-06]
[1741503142479,11.40177,2181.9,2181.8,9.55e-06]
[1741503143778,7.40177,2181.9,2181.8,9.55e-06]
[1741503144082,11.40177,2181.9,2181.8,9.55e-06]
[1741503145381,14.38277,2181.9,2181.8,9.55e-06]
[1741503148182,13.8327,2181.9,2181.0,1.9494]
[1741503148383,3.75808,2181.1,2181.0,1.9494]
[1741503165706,3.75808,2181.1,2181.0,0.96164]
[1741503165909,3.75808,2181.1,2180.8,0.00686955]
[1741503165910,0.55033,2180.9,2180.8,0.00686955]
[1741503168310,0.55033,2180.9,2180.8,9.55e-06]
[1741503179007,1.00533,2180.9,2180.8,9.55e-06]
[1741503188628,2.98033,2180.9,2180.8,9.55e-06]
[1741503192731,6.18813,2180.9,2180.8,9.55e-06]
[1741503198522,7.08716923,2180.9,2180.8,9.55e-06]
[1741503198927,6.18813,2180.9,2180.8,9.55e-06]
[1741503208541,5.73313,2180.9,2180.8,9.55e-06]
[1741503213247,3.75813,2180.9,2180.8,9.55e-06]
[1741503223356,0.55033,2180.9,2180.8,9.55e-06]
[1741503225162,3.75813,2180.9,2180.8,9.55e-06]
[1741503242973,0.55033,2180.9,2180.8,9.55e-06]
[1741503264193,2.52333,2180.9,2180.8,9.55e-06]
[1741503266497,5.73113,2180.9,2180.8,9.55e-06]
[1741503269602,0.55053,2180.1,2180.0,20.589]
[1741503269900,3.2078,2180.3,2179.8,1.8355]
[1741503270195,0.55058,2179.9,2179.8,1.8355]
[1741503270395,0.5506,2179.8,2179.7,3.2078]
[1741503270997,5.1356,2180.0,2179.6,0.00686955]
[1741503270998,0.55063,2179.7,2179.6,0.00686955]
[1741503271805,3.75843,2179.7,2179.6,0.00686955]
[1741503277096,3.75843,2179.7,2179.6,0.60626955]
[1741503277300,3.75843,2179.7,2179.6,1.21196955]
[1741503278206,0.55063,2179.7,2179.6,1.21196955]
[1741503278397,5.1356,2180.0,2179.6,1.21196955]
[1741503278603,0.55063,2179.7,2179.6,1.21196955]
[1741503288319,0.55063,2179.7,2179.6,1.76261955]
[1741503289114,0.55063,2179.7,2179.6,1.21196955]
[1741503300123,0.55063,2179.7,2179.6,0.00686955]
[1741503300713,0.55063,2179.7,2179.6,0.65646955]
[1741503308024,0.55063,2179.7,2179.6,0.00686955]
[1741503314925,3.75843,2179.7,2179.6,0.00686955]
[1741503315921,0.55063,2179.7,2179.6,0.00686955]
[1741503317635,3.75843,2179.7,2179.6,0.00686955]
[1741503319531,0.6467,2179.9,2179.6,0.00686955]
[1741503319736,0.55063,2179.7,2179.6,0.00686955]
[1741503320733,3.75843,2179.7,2179.6,0.00686955]
[1741503330536,3.75843,2179.7,2179.6,9.55e-06]
[1741503330537,5.00533,2179.7,2179.6,9.55e-06]
[1741503331537,9.00533,2179.7,2179.6,9.55e-06]
[1741503333543,8.9097,2179.7,2178.6,3.2078]
[1741503333745,0.55093,2178.5,2178.4,1.2518]
[1741503334938,0.00688563,2178.7,2178.4,1.2518]
[1741503335345,0.55093,2178.5,2178.4,1.2518]
[1741503338252,0.00688563,2178.7,2178.4,1.2518]
[1741503338646,0.55093,2178.5,2178.4,1.2518]
[1741503339952,0.55098,2178.3,2178.2,0.64343329]
[1741503341249,0.6063,2178.6,2178.2,1.92923329]
[1741503341449,0.55098,2178.3,2178.2,1.92923329]
[1741503341646,0.6063,2178.6,2178.2,2.48023329]
[1741503341851,0.6063,2178.6,2178.2,1.92923329]
[1741503342148,0.55098,2178.3,2178.2,1.92923329]
[1741503342753,0.55097,2178.4,2178.2,2.48023329]
[1741503343459,0.55097,2178.4,2178.2,1.92923329]
[1741503343658,0.6063,2178.6,2178.2,1.92923329]
[1741503343858,0.55098,2178.3,2178.2,1.92923329]
[1741503344959,0.6063,2178.6,2178.2,1.92923329]
[1741503345255,0.55097,2178.4,2178.2,2.48023329]
[1741503345558,0.6063,2178.6,2178.2,1.92923329]
[1741503345759,0.55098,2178.4,2178.2,2.48023329]
[1741503345955,0.6063,2178.6,2178.2,1.92923329]
[1741503346154,0.55098,2178.3,2178.2,1.92923329]
[1741503346359,0.55098,2178.3,2178.2,0.00463329]
[1741503347062,0.55098,2178.3,2178.2,1.30963329]
[1741503347357,0.55098,2178.3,2178.2,0.00463329]
[1741503349551,0.55098,2178.3,2178.2,0.63363329]
[1741503349756,0.55098,2178.3,2178.2,1.90823329]
[1741503353158,0.55098,2178.3,2178.2,0.00463329]
[1741503357869,2.52398,2178.3,2178.2,0.00463329]
[1741503364672,3.16168,2178.3,2178.2,0.00463329]
[1741503364869,1.18868,2178.3,2178.2,0.00463329]
[1741503366471,4.39648,2178.3,2178.2,0.00463329]
[1741503369374,0.5512,2177.5,2177.4,3.2078]
[1741503369577,0.5512,2177.5,2177.4,4.4322]
[1741503371269,0.6172,2177.8,2177.4,4.4322]
[1741503371569,0.55118,2177.5,2177.4,4.4322]
[1741503372978,0.55118,2177.5,2177.4,1.2244]
[1741503375778,0.638,2177.7,2177.3,0.6224]
[1741503375979,0.55121,2177.4,2177.3,1.2292]
[1741503376180,3.75901,2177.4,2177.3,1.2292]
[1741503376980,0.55124,2177.3,2177.2,20.607]
[1741503378386,1.18354,2177.3,2177.2,20.607]
[1741503380288,0.6323,2177.3,2177.0,1.272]
[1741503380583,0.55129,2177.1,2177.0,1.272]
[1741503380988,0.55131,2177.0,2176.9,0.6079]
[1741503381387,0.6318,2177.2,2176.8,0.6243]
[1741503381586,0.55134,2176.9,2176.8,0.6243]
[1741503385082,0.55136,2176.8,2176.7,3.2078]
[1741503391105,0.55135,2176.9,2176.7,3.75918]
[1741503391302,0.55135,2176.9,2176.8,0.61]
[1741503392308,0.55132,2177.0,2176.8,1.16135]
[1741503392507,0.55132,2177.0,2176.9,1.2274]
[1741503396908,0.55126,2177.2,2177.0,0.5513]
[1741503397109,0.55126,2177.2,2177.1,0.6275]
[1741503407912,0.55129,2177.1,2177.0,1.974]
[1741503408115,0.55129,2177.1,2176.9,1.2274]
[1741503408116,0.55131,2177.0,2176.9,3.8327]
[1741503410522,0.5513,2177.1,2176.9,3.8327]
[1741503411115,0.55131,2177.0,2176.9,3.8327]
[1741503415525,1.1742,2177.1,2176.9,4.38404]
[1741503415920,1.2572,2177.2,2176.9,4.38404]
[1741503416121,0.55129,2177.1,2176.9,4.38404]
[1741503417018,1.80847,2177.2,2177.0,0.55131]
[1741503417424,1.2572,2177.2,2176.9,4.38402]
[1741503418023,1.80848,2177.2,2177.0,0.55131]
[1741503418713,0.55129,2177.1,2176.9,4.38403]
[1741503419120,1.2572,2177.2,2176.9,4.38403]
[1741503419320,0.55129,2177.1,2176.9,4.38403]
[1741503420329,1.80848,2177.2,2176.9,3.8327]
[1741503420528,0.55129,2177.1,2176.9,4.38403]
[1741503420828,1.80848,2177.2,2176.9,3.8327]
[1741503421025,0.55129,2177.1,2176.9,4.38402]
[1741503421424,0.55129,2177.1,2176.9,3.8327]
[1741503421625,0.55131,2177.0,2176.9,3.8327]
[1741503422129,1.2572,2177.2,2176.9,3.8327]
[1741503422426,0.55131,2177.0,2176.9,3.8327]
[1741503424129,0.55131,2177.0,2176.9,1.974]
[1741503425232,0.55136,2176.8,2176.7,23.8268]
[1741503426523,0.6383,2177.0,2176.7,23.8268]
[1741503426724,3.8461,2177.0,2176.3,3.2078]
[1741503427032,3.8461,2177.0,2176.3,5.1808]
[1741503427033,1.2809,2176.9,2176.3,5.1808]
[1741503427233,3.2078,2177.3,2176.4,1.9136]
[1741503427532,0.55132,2177.0,2176.7,0.55138]
[1741503427724,0.6269,2177.2,2176.8,3.8866]
[1741503427925,0.55133,2177.0,2176.8,3.8866]
[1741503428133,0.55131,2177.0,2176.8,3.8866]
[1741503428724,0.55131,2177.0,2176.8,1.9136]
[1741503428926,0.55131,2177.0,2176.8,3.8866]
[1741503429332,0.55134,2176.9,2176.8,3.8866]
[1741503429631,0.55133,2177.0,2176.8,3.8866]
[1741503430623,1.8436,2177.1,2176.8,4.43795]
[1741503430819,0.55133,2177.0,2176.8,3.8866]
[1741503431032,0.55134,2176.9,2176.8,3.8866]
[1741503431220,0.55133,2177.0,2176.8,3.8866]
[1741503432227,0.55134,2176.9,2176.8,3.8866]
[1741503435541,0.55132,2177.0,2176.8,3.8866]
[1741503436938,1.2923,2177.1,2176.8,3.8866]
[1741503437133,0.55133,2177.0,2176.8,3.8866]
[1741503439035,0.55131,2177.0,2176.8,4.43796]
[1741503439437,0.55131,2177.0,2176.8,3.8866]
[1741503439638,0.654,2177.1,2176.8,3.8866]
[1741503439837,1.17817,2177.2,2176.9,3.75912]
[1741503440338,0.6269,2177.2,2176.9,3.2078]
[1741503440637,0.6099,2177.5,2176.9,3.2078]
[1741503440940,0.55123,2177.4,2177.1,0.55128]
[1741503441239,0.55123,2177.4,2177.2,2.5715]
[1741503441431,1.2466,2177.5,2177.2,3.1956]
[1741503441631,0.55124,2177.3,2177.2,3.1956]
[1741503442038,0.55123,2177.4,2177.2,3.1956]
[1741503443138,1.2466,2177.5,2177.2,3.1956]
[1741503443342,0.55124,2177.3,2177.2,3.1956]
[1741503444130,1.2466,2177.5,2177.2,3.1956]
[1741503444338,0.63358563,2177.6,2177.3,1.17862]
[1741503444538,0.63358563,2177.6,2177.4,0.55121]
[1741503444945,0.63358563,2177.6,2177.5,1.2706]
[1741503445433,1.18474563,2177.6,2177.5,1.2706]
[1741503446941,1.18474563,2177.6,2177.5,0.6145]
[1741503449042,0.00688563,2177.6,2177.5,1.16568]
[1741503449243,0.00688563,2177.6,2177.5,0.6145]
[1741503450545,0.00688563,2177.6,2177.5,1.16568]
[1741503451250,0.00688563,2177.6,2177.5,0.6145]
[1741503451441,0.55804563,2177.6,2177.5,2.5875]
[1741503452450,0.00688563,2177.6,2177.5,2.5875]
[1741503452648,0.55804563,2177.6,2177.5,2.5875]
[1741503452951,0.00688563,2177.6,2177.5,3.13868]
[1741503453448,0.00688563,2177.6,2177.5,2.5875]
[1741503453649,0.00688563,2177.6,2177.5,3.13868]
[1741503455145,0.00688563,2177.6,2177.5,2.5875]
[1741503455744,0.00688563,2177.6,2177.5,3.13868]
[1741503459948,3.2078,2178.0,2177.5,2.5875]
[1741503460153,3.75887,2178.0,2177.7,0.55112]
[1741503460453,3.75887,2178.0,2177.8,0.6137]
[1741503461258,0.00688563,2178.1,2177.9,2.625]
[1741503461547,0.00688563,2178.1,2177.9,3.79207]
[1741503461951,0.00688563,2178.1,2178.0,0.55106]
[1741503462346,0.00688563,2178.1,2178.0,4.55106]
[1741503462555,0.00688563,2178.1,2177.9,3.241]
[1741503462747,0.00688563,2178.1,2178.0,0.55106]
[1741503463057,0.00688563,2178.1,2177.9,3.79207]
[1741503463247,0.00688563,2178.1,2178.0,0.55106]
[1741503468553,1.2967,2178.5,2178.3,0.55097]
[1741503468754,1.9069,2178.5,2178.4,1.972]
[1741503469460,2.45783,2178.5,2178.4,1.972]
[1741503472270,1.9069,2178.5,2178.2,5.1798]
[1741503472472,0.55098,2178.3,2178.2,5.1798]
[1741503474370,3.2078,2178.3,2177.6,1.972]
[1741503474576,0.5511,2177.9,2177.7,0.55801563]
[1741503474770,0.6066,2177.8,2177.7,0.55801563]
[1741503475175,3.75887,2178.0,2177.8,0.5511]
[1741503475478,0.6066,2177.9,2177.7,0.55801563]
[1741503475968,3.75879,2178.3,2177.8,0.6126]
[1741503476174,3.2078,2178.3,2177.9,1.2707]
[1741503476372,0.55102,2178.2,2178.0,1.972]
[1741503476876,0.55103,2178.1,2178.0,1.972]
[1741503477469,0.55108,2177.9,2177.8,2.5846]
[1741503477978,0.55108,2177.9,2177.8,1.972]
[1741503478272,1.15638,2177.9,2177.8,1.972]
[1741503479978,0.6053,2177.9,2177.8,1.972]
[1741503480171,0.6053,2177.9,2177.8,3.2642]
[1741503480471,1.2351,2178.0,2177.8,3.2642]
[1741503480879,2.41596,2178.0,2177.8,3.2642]
[1741503483279,1.8649,2178.0,2177.8,3.2642]
[1741503483473,0.604,2178.0,2177.8,3.81529]
[1741503483686,0.604,2178.0,2177.9,0.55108]
[1741503483982,0.604,2178.0,2177.8,3.81529]
[1741503485174,0.604,2178.0,2177.8,3.2642]
[1741503485375,0.6166,2178.2,2178.0,0.55105]
[1741503485672,0.6166,2178.2,2177.9,0.55106]
[1741503485673,1.78261,2178.2,2177.9,0.55106]
[1741503486486,1.78261,2178.2,2177.8,3.81529]
[1741503486673,1.78261,2178.2,2177.9,0.55107]
[1741503486982,1.78261,2178.2,2177.8,3.81529]
[1741503487186,1.78261,2178.2,2177.8,3.2642]
[1741503487370,1.78261,2178.2,2177.9,0.55108]
[1741503487571,1.78261,2178.2,2177.8,3.81529]
[1741503488274,0.55107,2178.0,2177.8,3.2642]
[1741503488478,0.5967,2178.1,2177.8,3.2642]
[1741503488976,0.55106,2178.0,2177.8,3.2642]
[1741503489682,1.14775,2178.1,2177.8,3.81531]
[1741503489982,0.55107,2178.0,2177.8,3.2642]
[1741503490183,0.5967,2178.1,2177.8,3.2642]
[1741503490391,0.55107,2178.0,2177.8,3.2642]
[1741503490682,0.5967,2178.1,2177.8,3.2642]
[1741503490883,0.55108,2178.0,2177.8,3.2642]
[1741503491283,1.14774,2178.1,2177.8,3.2642]
[1741503491483,0.5967,2178.1,2177.8,3.2642]
[1741503491881,1.14774,2178.1,2177.8,3.2642]
[1741503492287,1.14774,2178.1,2177.8,1.2922]
[1741503492487,1.14774,2178.1,2177.8,3.2642]
[1741503493087,0.5967,2178.1,2177.7,2.99188563]
[1741503493290,0.55107,2178.0,2177.8,1.972]
[1741503493588,3.75887,2178.0,2177.8,1.972]
[1741503493788,0.635,2177.9,2177.8,1.972]
[1741503494887,1.2545,2177.9,2177.8,1.972]
[1741503496383,1.80558,2177.9,2177.8,1.972]
[1741503497481,1.2545,2177.9,2177.8,1.972]
[1741503497887,1.80558,2177.9,2177.8,1.972]
[1741503499090,0.55111,2177.8,2177.7,0.00688563]
[1741503499294,1.14941,2177.8,2177.7,0.00688563]
[1741503501687,0.55121,2177.4,2177.3,20.615]
[1741503503787,1.2033,2177.5,2177.3,20.615]
[1741503503991,1.20329,2177.5,2177.3,20.615]
[1741503504290,0.6521,2177.5,2177.3,20.615]
[1741503504491,0.55121,2177.4,2177.3,20.615]
[1741503504791,1.20329,2177.5,2177.3,20.615]
[1741503504994,0.55121,2177.4,2177.3,20.615]
[1741503505182,0.6521,2177.5,2177.3,20.615]
[1741503505381,1.20329,2177.5,2177.3,21.2088]
[1741503505608,0.6521,2177.5,2177.3,21.2088]
[1741503505885,0.6521,2177.5,2177.3,21.76002]
[1741503506293,0.00688563,2177.6,2177.3,21.2088]
[1741503506698,0.55804563,2177.6,2177.3,21.76002]
[1741503506886,0.55805563,2177.6,2177.3,21.76002]
[1741503507393,0.00688563,2177.6,2177.3,21.2088]
[1741503507694,0.00688563,2177.6,2177.4,0.5512]
[1741503507893,0.00688563,2177.6,2177.5,0.6382]
[1741503508093,0.00688563,2177.6,2177.5,1.2581]
[1741503509496,0.00688563,2177.6,2177.5,1.80928]
[1741503509995,0.00688563,2177.6,2177.5,1.2581]
[1741503510588,0.00688563,2177.6,2177.5,0.6382]
[1741503512984,0.00688563,2177.6,2177.5,1.18938]
[1741503519605,3.2078,2178.4,2177.5,7.6232]
[1741503519802,3.2078,2178.4,2178.1,0.55102]
[1741503520004,3.2078,2178.4,2178.2,1.2692]
[1741503520501,3.2078,2178.4,2178.3,0.55098]
[1741503520901,3.2078,2178.4,2178.3,1.15558]
[1741503521303,3.2078,2178.4,2178.3,0.55098]
[1741503522299,0.00688563,2178.5,2178.2,1.2692]
[1741503522604,0.00688563,2178.5,2178.4,0.55096]
[1741503522805,0.00688563,2178.5,2178.4,2.52296]
[1741503526109,0.00688563,2178.5,2178.2,4.60379218]
[1741503526295,0.00688563,2178.5,2178.3,2.52196]
[1741503526702,0.00688563,2178.5,2178.4,0.55096]
[1741503528505,0.00688563,2178.5,2178.4,3.75876]
[1741503529205,3.8076,2178.9,2178.4,3.2078]
[1741503529411,3.8076,2178.9,2178.7,0.55086]
[1741503529606,3.2078,2178.9,2178.8,0.55086]
[1741503531810,3.2078,2179.0,2178.8,0.55086]
[1741503532312,3.2078,2179.0,2178.7,1.971]
[1741503532800,3.2078,2179.0,2178.9,0.55083]
[1741503535712,3.2078,2179.0,2178.7,1.971]
[1741503535903,3.2078,2179.0,2178.8,0.55085]
[1741503537516,3.2078,2179.0,2178.7,1.971]
[1741503537721,3.2078,2179.0,2178.7,2.52186]
[1741503538708,3.2078,2179.0,2178.8,0.55085]
[1741503539815,3.2078,2179.0,2178.7,1.971]
[1741503540009,3.2078,2179.0,2178.9,0.55083]
[1741503540813,3.2078,2179.0,2178.7,1.971]
[1741503541014,3.2078,2179.0,2178.7,2.52187]
[1741503541214,0.6288,2178.9,2178.8,1.97]
[1741503543920,0.6288,2178.9,2178.8,2.52086]
[1741503544424,0.6288,2178.9,2178.8,1.97]
[1741503545824,0.6288,2178.9,2178.8,2.52086]
[1741503547522,1.2847,2178.9,2178.8,2.52086]
[1741503547718,1.2847,2178.9,2178.8,1.97]
[1741503548129,1.83553,2178.9,2178.8,1.97]
[1741503550022,2.44423,2178.9,2178.8,1.97]
[1741503553528,1.78833,2178.9,2178.8,1.97]
[1741503555025,1.15953,2178.9,2178.8,1.97]
[1741503555932,0.6087,2178.9,2178.8,1.97]
[1741503557227,1.15953,2178.9,2178.8,1.97]
[1741503558740,0.6087,2178.9,2178.8,1.97]
[1741503560437,0.6087,2178.9,2178.8,2.52086]
[1741503561338,3.2078,2179.0,2178.9,0.55083]
[1741503561531,0.66188563,2179.1,2178.9,1.14323]
[1741503561727,0.66188563,2179.1,2178.9,2.36243]
[1741503562427,0.00688563,2179.1,2179.0,0.55081]
[1741503564140,0.00688563,2179.1,2178.9,1.8116]
[1741503564435,0.00688563,2179.1,2178.9,2.36243]
[1741503565240,0.00688563,2179.1,2179.0,0.55081]
[1741503566335,0.00688563,2179.1,2178.9,2.36241]
[1741503566739,0.00688563,2179.1,2179.0,0.55081]
[1741503572539,3.2078,2179.3,2179.0,2.985]
[1741503572844,3.2078,2179.9,2179.2,3.2078]
[1741503573149,3.2078,2179.9,2179.3,3.1854]
[1741503573638,3.2078,2179.9,2179.7,0.55063]
[1741503573842,3.2078,2179.9,2179.8,2.5615]
[1741503575949,3.2078,2179.9,2179.8,3.2018]
[1741503576446,0.00688563,2180.0,2179.8,3.2018]
[1741503578048,0.00688563,2180.0,2179.9,0.55058]
[1741503581954,0.00688563,2180.0,2179.8,3.2018]
[1741503582251,0.00688563,2180.0,2179.8,3.75239]